[Event "January 9 Early 2024"]
[Site "https://www.chess.com"]
[Date "2024.01.11"]
[Round "4"]
[White "Gutkin, Ilya"]
[Black "Goryachkina, Aleksandra"]
[Result "1/2-1/2"]
[Board "291"]
[TimeControl "180+1"]
[WhiteFideId "16203470"]
[BlackFideId "4147103"]
[WhiteElo "2350"]
[BlackElo "2655"]
[WhiteTeam "GER"]
[BlackTeam "FID"]
[WhiteClock "0:00:03"]
[BlackClock "0:00:05"]

1. Nf3 {[%clk 0:03:00]}  c5 {[%clk 0:02:56]} 2. b3 {[%clk 0:03:00]}  b6 {[%clk 0:02:51]} 3. g3 {[%clk 0:02:59]}  Bb7 {[%clk 0:02:52]} 4. Bg2 {[%clk 0:03:00]}  Nf6 {[%clk 0:02:47]} 5. c4 {[%clk 0:03:00]}  g6 {[%clk 0:02:47]} 6. Bb2 {[%clk 0:02:59]}  Bg7 {[%clk 0:02:47]} 7. O-O {[%clk 0:03:00]}  O-O {[%clk 0:02:47]} 8. d4 {[%clk 0:03:00]}  cxd4 {[%clk 0:02:47]} 9. Qxd4 {[%clk 0:03:01]}  d6 {[%clk 0:02:45]} 10. Nc3 {[%clk 0:03:00]}  Ne4 {[%clk 0:02:26]} 11. Qe3 {[%clk 0:02:47]}  Nd7 {[%clk 0:02:21]} 12. Qc1 {[%clk 0:02:43]}  Rc8 {[%clk 0:02:02]} 13. Nxe4 {[%clk 0:02:42]}  Bxb2 {[%clk 0:01:59]} 14. Qxb2 {[%clk 0:02:43]}  Bxe4 {[%clk 0:01:59]} 15. Rac1 {[%clk 0:02:39]}  Nf6 {[%clk 0:01:56]} 16. Rfd1 {[%clk 0:02:37]}  Qc7 {[%clk 0:01:56]} 17. Nd4 {[%clk 0:02:30]}  Bxg2 {[%clk 0:01:55]} 18. Kxg2 {[%clk 0:02:30]}  Qb7+ {[%clk 0:01:55]} 19. Kg1 {[%clk 0:02:25]}  a6 {[%clk 0:01:53]} 20. h4 {[%clk 0:02:14]}  h5 {[%clk 0:01:46]} 21. Nc2 {[%clk 0:02:13]}  b5 {[%clk 0:01:42]} 22. Ne3 {[%clk 0:02:11]}  bxc4 {[%clk 0:01:31]} 23. Rxc4 {[%clk 0:02:06]}  Rxc4 {[%clk 0:01:29]} 24. Nxc4 {[%clk 0:02:07]}  Ne4 {[%clk 0:01:28]} 25. Qd4 {[%clk 0:02:03]}  Rc8 {[%clk 0:01:24]} 26. Rd3 {[%clk 0:01:47]}  Nc5 {[%clk 0:01:18]} 27. Re3 {[%clk 0:01:44]}  Ne6 {[%clk 0:01:14]} 28. Qd3 {[%clk 0:01:29]}  Ng7 {[%clk 0:01:14]} 29. Rf3 {[%clk 0:00:57]}  Qc6 {[%clk 0:01:09]} 30. e4 {[%clk 0:00:55]}  Qc5 {[%clk 0:01:02]} 31. Qd5 {[%clk 0:00:53]}  Qxd5 {[%clk 0:01:02]} 32. exd5 {[%clk 0:00:53]}  Nf5 {[%clk 0:01:02]} 33. Rd3 {[%clk 0:00:47]}  Rc5 {[%clk 0:01:00]} 34. Kf1 {[%clk 0:00:44]}  Kf8 {[%clk 0:00:58]} 35. Ke2 {[%clk 0:00:43]}  Ke8 {[%clk 0:00:59]} 36. Kd2 {[%clk 0:00:42]}  Nh6 {[%clk 0:00:56]} 37. Kc3 {[%clk 0:00:40]}  Ng4 {[%clk 0:00:56]} 38. Rd2 {[%clk 0:00:40]}  Nf6 {[%clk 0:00:55]} 39. b4 {[%clk 0:00:28]}  Ne4+ {[%clk 0:00:52]} 40. Kd3 {[%clk 0:00:20]}  Rxc4 {[%clk 0:00:49]} 41. Rb2 {[%clk 0:00:13]}  Rc3+ {[%clk 0:00:37]} 42. Kxe4 {[%clk 0:00:13]}  Ra3 {[%clk 0:00:37]} 43. f3 {[%clk 0:00:11]}  Kd7 {[%clk 0:00:37]} 44. Kf4 {[%clk 0:00:09]}  f6 {[%clk 0:00:36]} 45. g4 {[%clk 0:00:09]}  Ra4 {[%clk 0:00:28]} 46. gxh5 {[%clk 0:00:08]}  gxh5 {[%clk 0:00:28]} 47. Kf5 {[%clk 0:00:08]}  Ra3 {[%clk 0:00:27]} 48. Kg6 {[%clk 0:00:07]}  Rxf3 {[%clk 0:00:27]} 49. Kxh5 {[%clk 0:00:07]}  Rg3 {[%clk 0:00:27]} 50. a4 {[%clk 0:00:05]}  Kc7 {[%clk 0:00:23]} 51. b5 {[%clk 0:00:06]}  axb5 {[%clk 0:00:23]} 52. axb5 {[%clk 0:00:06]}  Kb6 {[%clk 0:00:23]} 53. Kh6 {[%clk 0:00:06]}  Rg4 {[%clk 0:00:17]} 54. h5 {[%clk 0:00:06]}  f5 {[%clk 0:00:18]} 55. Kh7 {[%clk 0:00:05]}  f4 {[%clk 0:00:18]} 56. h6 {[%clk 0:00:05]}  f3 {[%clk 0:00:18]} 57. Rf2 {[%clk 0:00:05]}  Rg3 {[%clk 0:00:19]} 58. Kh8 {[%clk 0:00:05]}  Kxb5 {[%clk 0:00:19]} 59. h7 {[%clk 0:00:04]}  Kc5 {[%clk 0:00:18]} 60. Rd2 {[%clk 0:00:03]}  Kc4 {[%clk 0:00:17]} 61. Rd4+ {[%clk 0:00:03]}  Kc5 {[%clk 0:00:10]} 62. Rg4 {[%clk 0:00:03]}  Rxg4 {[%clk 0:00:05]} 1/2-1/2

[Event "January 9 Early 2024"]
[Site "https://www.chess.com"]
[Date "2024.01.11"]
[Round "4"]
[White "Kornyukov, Alexey"]
[Black "Toktomushev, Teimur"]
[Result "0-1"]
[Board "297"]
[TimeControl "180+1"]
[WhiteFideId "4150457"]
[BlackFideId "14176726"]
[WhiteElo "2274"]
[BlackElo "2489"]
[WhiteTeam "RUS"]
[BlackTeam "UKR"]
[WhiteClock "0:00:03"]
[BlackClock "0:00:07"]

1. e4 {[%clk 0:03:00]}  c5 {[%clk 0:02:56]} 2. Nf3 {[%clk 0:02:56]}  e6 {[%clk 0:02:57]} 3. Nc3 {[%clk 0:02:56]}  a6 {[%clk 0:02:56]} 4. d4 {[%clk 0:02:56]}  cxd4 {[%clk 0:02:57]} 5. Nxd4 {[%clk 0:02:54]}  b5 {[%clk 0:02:48]} 6. a3 {[%clk 0:02:39]}  Bb7 {[%clk 0:02:48]} 7. Bd3 {[%clk 0:02:25]}  Nc6 {[%clk 0:02:24]} 8. Nxc6 {[%clk 0:02:11]}  Bxc6 {[%clk 0:02:24]} 9. O-O {[%clk 0:02:09]}  Qc7 {[%clk 0:02:06]} 10. Re1 {[%clk 0:02:04]}  Bd6 {[%clk 0:01:46]} 11. h3 {[%clk 0:01:53]}  Ne7 {[%clk 0:01:36]} 12. Bg5 {[%clk 0:01:45]}  h6 {[%clk 0:01:23]} 13. Bxe7 {[%clk 0:01:42]}  Bxe7 {[%clk 0:01:24]} 14. Qe2 {[%clk 0:01:33]}  O-O {[%clk 0:01:13]} 15. Rad1 {[%clk 0:01:24]}  d6 {[%clk 0:00:39]} 16. e5 {[%clk 0:01:12]}  dxe5 {[%clk 0:00:32]} 17. Qxe5 {[%clk 0:01:06]}  Qxe5 {[%clk 0:00:33]} 18. Rxe5 {[%clk 0:01:06]}  Rfd8 {[%clk 0:00:30]} 19. Ree1 {[%clk 0:01:02]}  b4 {[%clk 0:00:22]} 20. axb4 {[%clk 0:01:00]}  Bxb4 {[%clk 0:00:23]} 21. Be4 {[%clk 0:00:41]}  Bxc3 {[%clk 0:00:17]} 22. Rxd8+ {[%clk 0:00:39]}  Rxd8 {[%clk 0:00:13]} 23. bxc3 {[%clk 0:00:37]}  Bxe4 {[%clk 0:00:12]} 24. Rxe4 {[%clk 0:00:37]}  Rd1+ {[%clk 0:00:12]} 25. Kh2 {[%clk 0:00:37]}  Rd2 {[%clk 0:00:11]} 26. f3 {[%clk 0:00:27]}  a5 {[%clk 0:00:07]} 27. Ra4 {[%clk 0:00:26]}  Rd5 {[%clk 0:00:08]} 28. c4 {[%clk 0:00:25]}  Rc5 {[%clk 0:00:08]} 29. Kg3 {[%clk 0:00:23]}  Kf8 {[%clk 0:00:09]} 30. Kf2 {[%clk 0:00:23]}  Ke7 {[%clk 0:00:09]} 31. Ke3 {[%clk 0:00:23]}  Kd6 {[%clk 0:00:07]} 32. Kd4 {[%clk 0:00:23]}  e5+ {[%clk 0:00:07]} 33. Ke4 {[%clk 0:00:22]}  g6 {[%clk 0:00:07]} 34. g4 {[%clk 0:00:21]}  Kc6 {[%clk 0:00:07]} 35. Kd3 {[%clk 0:00:19]}  Kb6 {[%clk 0:00:06]} 36. Kc3 {[%clk 0:00:18]}  f5 {[%clk 0:00:05]} 37. Kd3 {[%clk 0:00:17]}  Rc8 {[%clk 0:00:03]} 38. Ra1 {[%clk 0:00:16]}  Rd8+ {[%clk 0:00:03]} 39. Kc3 {[%clk 0:00:16]}  Ra8 {[%clk 0:00:03]} 40. Rb1+ {[%clk 0:00:16]}  Kc6 {[%clk 0:00:04]} 41. gxf5 {[%clk 0:00:14]}  gxf5 {[%clk 0:00:04]} 42. Rg1 {[%clk 0:00:14]}  a4 {[%clk 0:00:02]} 43. Rg6+ {[%clk 0:00:14]}  Kc5 {[%clk 0:00:03]} 44. Kb2 {[%clk 0:00:14]}  a3+ {[%clk 0:00:02]} 45. Ka2 {[%clk 0:00:13]}  Kxc4 {[%clk 0:00:03]} 46. Rxh6 {[%clk 0:00:14]}  e4 {[%clk 0:00:03]} 47. fxe4 {[%clk 0:00:13]}  fxe4 {[%clk 0:00:04]} 48. Re6 {[%clk 0:00:13]}  Kd4 {[%clk 0:00:03]} 49. c3+ {[%clk 0:00:12]}  Kd3 {[%clk 0:00:02]} 50. h4 {[%clk 0:00:12]}  e3 {[%clk 0:00:03]} 51. h5 {[%clk 0:00:12]}  e2 {[%clk 0:00:03]} 52. Rd6+ {[%clk 0:00:12]}  Kxc3 {[%clk 0:00:04]} 53. Re6 {[%clk 0:00:12]}  Kd2 {[%clk 0:00:04]} 54. Rd6+ {[%clk 0:00:12]}  Ke1 {[%clk 0:00:02]} 55. Re6 {[%clk 0:00:12]}  Kf1 {[%clk 0:00:02]} 56. Rf6+ {[%clk 0:00:12]}  Ke1 {[%clk 0:00:03]} 57. Re6 {[%clk 0:00:11]}  Rh8 {[%clk 0:00:03]} 58. h6 {[%clk 0:00:11]}  Kd2 {[%clk 0:00:03]} 59. Rd6+ {[%clk 0:00:11]}  Kc2 {[%clk 0:00:03]} 60. Rc6+ {[%clk 0:00:10]}  Kd3 {[%clk 0:00:02]} 61. Rd6+ {[%clk 0:00:11]}  Kc3 {[%clk 0:00:03]} 62. Re6 {[%clk 0:00:09]}  Kd2 {[%clk 0:00:01]} 63. Rd6+ {[%clk 0:00:09]}  Ke1 {[%clk 0:00:02]} 64. Kxa3 {[%clk 0:00:07]}  Rf8 {[%clk 0:00:02]} 65. h7 {[%clk 0:00:05]}  Kf1 {[%clk 0:00:03]} 66. Rh6 {[%clk 0:00:01]}  e1=Q {[%clk 0:00:02]} 67. h8=Q {[%clk 0:00:02]}  Rxh8 {[%clk 0:00:02]} 68. Rxh8 {[%clk 0:00:02]}  Qc3+ {[%clk 0:00:03]} 69. Ka4 {[%clk 0:00:02]}  Qxh8 {[%clk 0:00:04]} 70. Kb5 {[%clk 0:00:03]}  Ke2 {[%clk 0:00:04]} 71. Kc4 {[%clk 0:00:03]}  Ke3 {[%clk 0:00:05]} 72. Kd5 {[%clk 0:00:03]}  Qd4+ {[%clk 0:00:06]} 73. Ke6 {[%clk 0:00:03]}  Kf4 {[%clk 0:00:07]} 0-1

[Event "January 9 Early 2024"]
[Site "https://www.chess.com"]
[Date "2024.01.11"]
[Round "4"]
[White "Vakhidov, Shahzod"]
[Black "Cupid, Kevin"]
[Result "1-0"]
[Board "298"]
[TimeControl "180+1"]
[WhiteFideId "14205270"]
[BlackFideId "7700512"]
[WhiteElo "2519"]
[BlackElo "2326"]
[WhiteTeam "UZB"]
[BlackTeam "TTO"]
[WhiteClock "0:00:07"]
[BlackClock "0:00:03"]

1. d4 {[%clk 0:03:00]}  d5 {[%clk 0:02:58]} 2. Nf3 {[%clk 0:03:00]}  Nf6 {[%clk 0:02:56]} 3. c4 {[%clk 0:03:01]}  e6 {[%clk 0:02:49]} 4. g3 {[%clk 0:03:01]}  Bb4+ {[%clk 0:02:48]} 5. Bd2 {[%clk 0:03:00]}  Be7 {[%clk 0:02:42]} 6. Bg2 {[%clk 0:03:00]}  O-O {[%clk 0:02:42]} 7. O-O {[%clk 0:03:01]}  Nbd7 {[%clk 0:02:43]} 8. Qc2 {[%clk 0:03:01]}  c6 {[%clk 0:02:31]} 9. Rd1 {[%clk 0:03:01]}  Ne4 {[%clk 0:02:30]} 10. Bf4 {[%clk 0:02:57]}  g5 {[%clk 0:02:23]} 11. Bd2 {[%clk 0:02:40]}  f5 {[%clk 0:02:22]} 12. Nc3 {[%clk 0:02:37]}  g4 {[%clk 0:02:21]} 13. Ne1 {[%clk 0:02:35]}  Ndf6 {[%clk 0:02:12]} 14. cxd5 {[%clk 0:02:29]}  exd5 {[%clk 0:02:10]} 15. Nd3 {[%clk 0:02:29]}  Nxc3 {[%clk 0:01:59]} 16. bxc3 {[%clk 0:02:27]}  Be6 {[%clk 0:01:55]} 17. Rab1 {[%clk 0:02:17]}  b5 {[%clk 0:01:49]} 18. Nf4 {[%clk 0:01:54]}  Bd7 {[%clk 0:01:39]} 19. f3 {[%clk 0:01:51]}  Bd6 {[%clk 0:01:36]} 20. fxg4 {[%clk 0:01:38]}  Nxg4 {[%clk 0:01:25]} 21. Qd3 {[%clk 0:01:08]}  Qe7 {[%clk 0:01:21]} 22. Bf3 {[%clk 0:00:59]}  Nf6 {[%clk 0:01:10]} 23. Qe3 {[%clk 0:01:00]}  Qxe3+ {[%clk 0:00:52]} 24. Bxe3 {[%clk 0:01:00]}  Rae8 {[%clk 0:00:46]} 25. Bd2 {[%clk 0:00:56]}  Ne4 {[%clk 0:00:26]} 26. Rbc1 {[%clk 0:00:44]}  Rb8 {[%clk 0:00:17]} 27. Nd3 {[%clk 0:00:44]}  Rfe8 {[%clk 0:00:16]} 28. Bf4 {[%clk 0:00:36]}  Bxf4 {[%clk 0:00:14]} 29. gxf4 {[%clk 0:00:36]}  Rb6 {[%clk 0:00:13]} 30. Ne5 {[%clk 0:00:36]}  Be6 {[%clk 0:00:13]} 31. Bxe4 {[%clk 0:00:36]}  dxe4 {[%clk 0:00:12]} 32. Kf2 {[%clk 0:00:36]}  Kh8 {[%clk 0:00:07]} 33. a4 {[%clk 0:00:21]}  bxa4 {[%clk 0:00:05]} 34. Ra1 {[%clk 0:00:21]}  Bb3 {[%clk 0:00:04]} 35. Rg1 {[%clk 0:00:21]}  Rb7 {[%clk 0:00:04]} 36. Nxc6 {[%clk 0:00:18]}  Rg7 {[%clk 0:00:03]} 37. Rxg7 {[%clk 0:00:16]}  Kxg7 {[%clk 0:00:04]} 38. Nxa7 {[%clk 0:00:15]}  Rb8 {[%clk 0:00:04]} 39. Nc6 {[%clk 0:00:12]}  Rc8 {[%clk 0:00:04]} 40. Ne7 {[%clk 0:00:05]}  Rxc3 {[%clk 0:00:02]} 41. Nxf5+ {[%clk 0:00:06]}  Kf6 {[%clk 0:00:02]} 42. Nd6 {[%clk 0:00:06]}  Kg6 {[%clk 0:00:02]} 43. Nxe4 {[%clk 0:00:05]}  Rc2 {[%clk 0:00:03]} 44. Ke3 {[%clk 0:00:05]}  Kf5 {[%clk 0:00:03]} 45. Nd2 {[%clk 0:00:04]}  Rc7 {[%clk 0:00:01]} 46. Nxb3 {[%clk 0:00:04]}  axb3 {[%clk 0:00:02]} 47. Rb1 {[%clk 0:00:05]}  Re7+ {[%clk 0:00:02]} 48. Kf3 {[%clk 0:00:04]}  Re4 {[%clk 0:00:03]} 49. e3 {[%clk 0:00:03]}  Re7 {[%clk 0:00:03]} 50. Rxb3 {[%clk 0:00:03]}  Rc7 {[%clk 0:00:02]} 51. Rb5+ {[%clk 0:00:04]}  Kf6 {[%clk 0:00:02]} 52. Re5 {[%clk 0:00:04]}  Rc2 {[%clk 0:00:03]} 53. h4 {[%clk 0:00:05]}  h6 {[%clk 0:00:03]} 54. h5 {[%clk 0:00:04]}  Rc1 {[%clk 0:00:03]} 55. Ra5 {[%clk 0:00:04]}  Rh1 {[%clk 0:00:02]} 56. Ke4 {[%clk 0:00:04]}  Rh3 {[%clk 0:00:02]} 57. Ra6+ {[%clk 0:00:04]}  Kg7 {[%clk 0:00:02]} 58. Rg6+ {[%clk 0:00:04]}  Kh7 {[%clk 0:00:02]} 59. Rg2 {[%clk 0:00:03]}  Rxh5 {[%clk 0:00:03]} 60. d5 {[%clk 0:00:03]}  Rh1 {[%clk 0:00:02]} 61. Ke5 {[%clk 0:00:03]}  Rd1 {[%clk 0:00:02]} 62. e4 {[%clk 0:00:04]}  h5 {[%clk 0:00:02]} 63. Ke6 {[%clk 0:00:05]}  Kh6 {[%clk 0:00:02]} 64. d6 {[%clk 0:00:05]}  h4 {[%clk 0:00:03]} 65. d7 {[%clk 0:00:06]}  Kh5 {[%clk 0:00:03]} 66. Ke7 {[%clk 0:00:06]}  h3 {[%clk 0:00:03]} 67. Rh2 {[%clk 0:00:06]}  Kg4 {[%clk 0:00:04]} 68. Rxh3 {[%clk 0:00:06]}  Kxf4 {[%clk 0:00:04]} 69. d8=Q {[%clk 0:00:07]}  Rxd8 {[%clk 0:00:03]} 70. Kxd8 {[%clk 0:00:07]} 1-0

[Event "January 9 Early 2024"]
[Site "https://www.chess.com"]
[Date "2024.01.11"]
[Round "4"]
[White "Bogaudinov, Rushan"]
[Black "Kurmangaliyeva, Liya"]
[Result "0-1"]
[Board "301"]
[TimeControl "180+1"]
[WhiteFideId "4129288"]
[BlackFideId "13725831"]
[WhiteElo "2384"]
[BlackElo "2534"]
[WhiteTeam "RUS"]
[BlackTeam "KAZ"]
[WhiteClock "0:00:11"]
[BlackClock "0:00:08"]

1. e4 {[%clk 0:02:58]}  c5 {[%clk 0:02:56]} 2. Nf3 {[%clk 0:02:54]}  d6 {[%clk 0:02:56]} 3. g3 {[%clk 0:02:54]}  Nc6 {[%clk 0:02:53]} 4. Bg2 {[%clk 0:02:54]}  g6 {[%clk 0:02:52]} 5. O-O {[%clk 0:02:54]}  Bg7 {[%clk 0:02:53]} 6. c3 {[%clk 0:02:55]}  e5 {[%clk 0:02:53]} 7. Na3 {[%clk 0:02:47]}  Nge7 {[%clk 0:02:52]} 8. Nc2 {[%clk 0:02:45]}  O-O {[%clk 0:02:46]} 9. d4 {[%clk 0:02:45]}  exd4 {[%clk 0:02:30]} 10. cxd4 {[%clk 0:02:45]}  Bg4 {[%clk 0:02:25]} 11. Be3 {[%clk 0:02:36]}  Qb6 {[%clk 0:02:02]} 12. dxc5 {[%clk 0:02:29]}  dxc5 {[%clk 0:02:01]} 13. Rb1 {[%clk 0:02:13]}  Rad8 {[%clk 0:01:57]} 14. Qe1 {[%clk 0:02:13]}  Nd4 {[%clk 0:01:54]} 15. Ncxd4 {[%clk 0:02:09]}  cxd4 {[%clk 0:01:54]} 16. Bg5 {[%clk 0:02:08]}  Rfe8 {[%clk 0:01:49]} 17. Qd2 {[%clk 0:01:56]}  Rd7 {[%clk 0:01:37]} 18. h3 {[%clk 0:01:48]}  Be6 {[%clk 0:01:29]} 19. b3 {[%clk 0:01:43]}  Nc6 {[%clk 0:01:27]} 20. Bf4 {[%clk 0:01:41]}  Qb4 {[%clk 0:00:56]} 21. Rfd1 {[%clk 0:01:29]}  Qxd2 {[%clk 0:00:50]} 22. Rxd2 {[%clk 0:01:29]}  h6 {[%clk 0:00:50]} 23. h4 {[%clk 0:01:23]}  Bg4 {[%clk 0:00:48]} 24. Ne1 {[%clk 0:01:21]}  Bf8 {[%clk 0:00:42]} 25. f3 {[%clk 0:01:11]}  Be6 {[%clk 0:00:42]} 26. Nd3 {[%clk 0:01:11]}  Red8 {[%clk 0:00:33]} 27. Bf1 {[%clk 0:01:09]}  Nb4 {[%clk 0:00:32]} 28. Nxb4 {[%clk 0:01:07]}  Bxb4 {[%clk 0:00:31]} 29. Rd3 {[%clk 0:01:05]}  Rc8 {[%clk 0:00:29]} 30. Bxh6 {[%clk 0:00:58]}  Rc2 {[%clk 0:00:29]} 31. a3 {[%clk 0:00:58]}  Bxa3 {[%clk 0:00:27]} 32. Rd2 {[%clk 0:00:51]}  Rxd2 {[%clk 0:00:21]} 33. Bxd2 {[%clk 0:00:51]}  Bc5 {[%clk 0:00:20]} 34. Bd3 {[%clk 0:00:50]}  Bb6 {[%clk 0:00:19]} 35. Kf2 {[%clk 0:00:45]}  Rc7 {[%clk 0:00:18]} 36. f4 {[%clk 0:00:43]}  f5 {[%clk 0:00:18]} 37. Kf3 {[%clk 0:00:34]}  Kf7 {[%clk 0:00:18]} 38. Rh1 {[%clk 0:00:31]}  Kf6 {[%clk 0:00:18]} 39. h5 {[%clk 0:00:31]}  Rh7 {[%clk 0:00:14]} 40. h6 {[%clk 0:00:27]}  Bxb3 {[%clk 0:00:12]} 41. g4 {[%clk 0:00:24]}  fxg4+ {[%clk 0:00:11]} 42. Kxg4 {[%clk 0:00:24]}  Be6+ {[%clk 0:00:12]} 43. Kf3 {[%clk 0:00:24]}  Bc5 {[%clk 0:00:11]} 44. e5+ {[%clk 0:00:18]}  Kf7 {[%clk 0:00:10]} 45. Be4 {[%clk 0:00:16]}  b6 {[%clk 0:00:10]} 46. Bc1 {[%clk 0:00:15]}  a5 {[%clk 0:00:10]} 47. Bd2 {[%clk 0:00:15]}  a4 {[%clk 0:00:10]} 48. Ra1 {[%clk 0:00:14]}  Bb3 {[%clk 0:00:10]} 49. Rc1 {[%clk 0:00:13]}  Rxh6 {[%clk 0:00:10]} 50. f5 {[%clk 0:00:13]}  Rh3+ {[%clk 0:00:09]} 51. Kg4 {[%clk 0:00:13]}  Rh2 {[%clk 0:00:09]} 52. fxg6+ {[%clk 0:00:13]}  Kg7 {[%clk 0:00:09]} 53. Bg5 {[%clk 0:00:13]}  Be6+ {[%clk 0:00:09]} 54. Bf5 {[%clk 0:00:13]}  Rg2+ {[%clk 0:00:08]} 55. Kf3 {[%clk 0:00:11]}  Rxg5 {[%clk 0:00:08]} 56. Bxe6 {[%clk 0:00:12]}  Rxe5 {[%clk 0:00:08]} 57. Bd7 {[%clk 0:00:12]}  Kxg6 {[%clk 0:00:07]} 58. Bxa4 {[%clk 0:00:11]}  Re3+ {[%clk 0:00:08]} 59. Kf4 {[%clk 0:00:11]}  Bd6+ {[%clk 0:00:08]} 60. Kg4 {[%clk 0:00:11]}  Bc5 {[%clk 0:00:08]} 61. Bb5 {[%clk 0:00:11]}  Kf6 {[%clk 0:00:06]} 62. Rb1 {[%clk 0:00:09]}  Ke5 {[%clk 0:00:06]} 63. Bc4 {[%clk 0:00:09]}  Ke4 {[%clk 0:00:06]} 64. Rb5 {[%clk 0:00:07]}  d3 {[%clk 0:00:06]} 65. Rb3 {[%clk 0:00:06]}  Kd4 {[%clk 0:00:06]} 66. Bxd3 {[%clk 0:00:06]}  Rxd3 {[%clk 0:00:06]} 67. Rb1 {[%clk 0:00:06]}  Kc3 {[%clk 0:00:06]} 68. Kf4 {[%clk 0:00:07]}  Kc4 {[%clk 0:00:05]} 69. Ke4 {[%clk 0:00:08]}  Rc3 {[%clk 0:00:05]} 70. Ra1 {[%clk 0:00:07]}  b5 {[%clk 0:00:05]} 71. Rb1 {[%clk 0:00:07]}  b4 {[%clk 0:00:05]} 72. Rb2 {[%clk 0:00:08]}  b3 {[%clk 0:00:06]} 73. Rb1 {[%clk 0:00:08]}  Rc2 {[%clk 0:00:06]} 74. Ke5 {[%clk 0:00:07]}  Kc3 {[%clk 0:00:06]} 75. Ke4 {[%clk 0:00:08]}  Ba3 {[%clk 0:00:07]} 76. Ke3 {[%clk 0:00:08]}  Rc1 {[%clk 0:00:07]} 77. Rxb3+ {[%clk 0:00:07]}  Kxb3 {[%clk 0:00:07]} 78. Kd2 {[%clk 0:00:08]}  Rc7 {[%clk 0:00:07]} 79. Kd3 {[%clk 0:00:09]}  Rd7+ {[%clk 0:00:07]} 80. Ke4 {[%clk 0:00:10]}  Kc4 {[%clk 0:00:07]} 81. Ke5 {[%clk 0:00:11]}  Re7+ {[%clk 0:00:07]} 82. Kf6 {[%clk 0:00:11]}  Kd5 {[%clk 0:00:08]} 0-1

[Event "January 9 Early 2024"]
[Site "https://www.chess.com"]
[Date "2024.01.11"]
[Round "4"]
[White "Garbarino, Rodolfo"]
[Black "Kopczynski, Michal"]
[Result "1/2-1/2"]
[Board "302"]
[TimeControl "180+1"]
[WhiteFideId "100412"]
[BlackFideId "1124200"]
[WhiteElo "2371"]
[BlackElo "2519"]
[WhiteTeam "ARG"]
[BlackTeam "POL"]
[WhiteClock "0:00:10"]
[BlackClock "0:00:06"]

1. e4 {[%clk 0:03:00]}  b6 {[%clk 0:03:00]} 2. d4 {[%clk 0:03:00]}  Bb7 {[%clk 0:03:00]} 3. Nc3 {[%clk 0:03:00]}  e6 {[%clk 0:03:01]} 4. Nf3 {[%clk 0:02:59]}  Nf6 {[%clk 0:03:01]} 5. Bd3 {[%clk 0:02:57]}  d5 {[%clk 0:03:01]} 6. exd5 {[%clk 0:02:53]}  Nxd5 {[%clk 0:03:02]} 7. Nxd5 {[%clk 0:02:47]}  Qxd5 {[%clk 0:03:02]} 8. O-O {[%clk 0:02:43]}  Bd6 {[%clk 0:03:00]} 9. Re1 {[%clk 0:02:39]}  Qh5 {[%clk 0:02:58]} 10. Be4 {[%clk 0:02:38]}  Bxe4 {[%clk 0:02:58]} 11. Rxe4 {[%clk 0:02:36]}  O-O {[%clk 0:02:58]} 12. Qd3 {[%clk 0:02:28]}  Nd7 {[%clk 0:02:44]} 13. Bf4 {[%clk 0:02:24]}  Nf6 {[%clk 0:02:30]} 14. Bxd6 {[%clk 0:02:22]}  cxd6 {[%clk 0:02:23]} 15. Rh4 {[%clk 0:02:19]}  Qg6 {[%clk 0:02:23]} 16. Qxg6 {[%clk 0:02:17]}  hxg6 {[%clk 0:02:24]} 17. c3 {[%clk 0:02:17]}  b5 {[%clk 0:02:20]} 18. Ng5 {[%clk 0:02:12]}  d5 {[%clk 0:02:14]} 19. f3 {[%clk 0:02:08]}  a5 {[%clk 0:02:13]} 20. g4 {[%clk 0:01:57]}  b4 {[%clk 0:02:12]} 21. Rh3 {[%clk 0:01:56]}  bxc3 {[%clk 0:02:10]} 22. bxc3 {[%clk 0:01:55]}  Rfc8 {[%clk 0:02:10]} 23. Rc1 {[%clk 0:01:55]}  Rab8 {[%clk 0:02:08]} 24. Rg3 {[%clk 0:01:54]}  Rb2 {[%clk 0:02:01]} 25. Rg2 {[%clk 0:01:54]}  Rcb8 {[%clk 0:02:01]} 26. Rcc2 {[%clk 0:01:52]}  Rb1+ {[%clk 0:01:59]} 27. Kf2 {[%clk 0:01:51]}  Ne8 {[%clk 0:01:34]} 28. Rg1 {[%clk 0:01:50]}  Nd6 {[%clk 0:01:29]} 29. Rxb1 {[%clk 0:01:45]}  Rxb1 {[%clk 0:01:30]} 30. Nh3 {[%clk 0:01:44]}  Nc4 {[%clk 0:01:20]} 31. Nf4 {[%clk 0:01:43]}  a4 {[%clk 0:01:16]} 32. Nd3 {[%clk 0:01:41]}  a3 {[%clk 0:01:13]} 33. Rc1 {[%clk 0:01:40]}  Rb5 {[%clk 0:00:52]} 34. Rc2 {[%clk 0:01:38]}  Nb2 {[%clk 0:00:42]} 35. Nc5 {[%clk 0:01:26]}  Kf8 {[%clk 0:00:34]} 36. Ke2 {[%clk 0:01:25]}  Ke7 {[%clk 0:00:34]} 37. Nb3 {[%clk 0:01:20]}  Kd6 {[%clk 0:00:29]} 38. Nd2 {[%clk 0:01:19]}  Na4 {[%clk 0:00:26]} 39. c4 {[%clk 0:01:16]}  Rb2 {[%clk 0:00:26]} 40. Kd3 {[%clk 0:01:14]}  Rb8 {[%clk 0:00:19]} 41. cxd5 {[%clk 0:01:04]}  exd5 {[%clk 0:00:20]} 42. Nb3 {[%clk 0:01:04]}  Nb2+ {[%clk 0:00:19]} 43. Ke2 {[%clk 0:01:01]}  Nc4 {[%clk 0:00:20]} 44. Rc3 {[%clk 0:00:58]}  Rh8 {[%clk 0:00:18]} 45. Kd3 {[%clk 0:00:52]}  Rxh2 {[%clk 0:00:19]} 46. Rc2 {[%clk 0:00:52]}  Rh3 {[%clk 0:00:18]} 47. Ke2 {[%clk 0:00:51]}  Rh2+ {[%clk 0:00:17]} 48. Kd3 {[%clk 0:00:51]}  Nb2+ {[%clk 0:00:17]} 49. Kc3 {[%clk 0:00:50]}  Nd1+ {[%clk 0:00:17]} 50. Kd3 {[%clk 0:00:50]}  Nb2+ {[%clk 0:00:17]} 51. Kc3 {[%clk 0:00:50]}  Rh3 {[%clk 0:00:17]} 52. Rf2 {[%clk 0:00:47]}  Na4+ {[%clk 0:00:16]} 53. Kb4 {[%clk 0:00:47]}  Nb2 {[%clk 0:00:14]} 54. Kxa3 {[%clk 0:00:46]}  Nc4+ {[%clk 0:00:15]} 55. Kb4 {[%clk 0:00:44]}  f5 {[%clk 0:00:15]} 56. gxf5 {[%clk 0:00:42]}  gxf5 {[%clk 0:00:16]} 57. Rg2 {[%clk 0:00:40]}  Rxf3 {[%clk 0:00:14]} 58. Rg6+ {[%clk 0:00:40]}  Ke7 {[%clk 0:00:10]} 59. Rxg7+ {[%clk 0:00:39]}  Kf6 {[%clk 0:00:10]} 60. Rg8 {[%clk 0:00:40]}  f4 {[%clk 0:00:11]} 61. a4 {[%clk 0:00:37]}  Rf1 {[%clk 0:00:08]} 62. Nc5 {[%clk 0:00:33]}  Rb1+ {[%clk 0:00:07]} 63. Kc3 {[%clk 0:00:33]}  Ra1 {[%clk 0:00:07]} 64. Rf8+ {[%clk 0:00:27]}  Kg5 {[%clk 0:00:08]} 65. Ne6+ {[%clk 0:00:27]}  Kg4 {[%clk 0:00:07]} 66. Nxf4 {[%clk 0:00:26]}  Rxa4 {[%clk 0:00:06]} 67. Nxd5 {[%clk 0:00:26]}  Nd6 {[%clk 0:00:06]} 68. Ne3+ {[%clk 0:00:23]}  Kg5 {[%clk 0:00:06]} 69. Nc2 {[%clk 0:00:18]}  Rc4+ {[%clk 0:00:05]} 70. Kd3 {[%clk 0:00:17]}  Rc8 {[%clk 0:00:06]} 71. Rf1 {[%clk 0:00:14]}  Rd8 {[%clk 0:00:06]} 72. Ne3 {[%clk 0:00:13]}  Kg6 {[%clk 0:00:05]} 73. Rg1+ {[%clk 0:00:13]}  Kf6 {[%clk 0:00:06]} 74. Rf1+ {[%clk 0:00:13]}  Ke6 {[%clk 0:00:06]} 75. Rh1 {[%clk 0:00:10]}  Kd7 {[%clk 0:00:06]} 76. Rh7+ {[%clk 0:00:10]}  Kc6 {[%clk 0:00:07]} 77. Rh6 {[%clk 0:00:11]}  Kd7 {[%clk 0:00:06]} 78. Rh7+ {[%clk 0:00:11]}  Kc6 {[%clk 0:00:06]} 79. Rh6 {[%clk 0:00:11]}  Kd7 {[%clk 0:00:07]} 80. Nc4 {[%clk 0:00:11]}  Nxc4 {[%clk 0:00:06]} 81. Kxc4 {[%clk 0:00:11]}  Rc8+ {[%clk 0:00:07]} 82. Kd5 {[%clk 0:00:11]}  Re8 {[%clk 0:00:05]} 83. Rh7+ {[%clk 0:00:11]}  Kc8 {[%clk 0:00:05]} 84. Kd6 {[%clk 0:00:09]}  Rd8+ {[%clk 0:00:05]} 85. Kc6 {[%clk 0:00:10]}  Rxd4 {[%clk 0:00:05]} 86. Rh8+ {[%clk 0:00:10]}  Rd8 {[%clk 0:00:05]} 87. Rxd8+ {[%clk 0:00:10]}  Kxd8 {[%clk 0:00:06]} 1/2-1/2